Cogmind - Beta 12 @@@ ROGUE MODE // 2023.08.03 @ 23:13:02 Player: Roxy Result: Destroyed by G-47 Trooper with Particle Gun Performance ------------- Evolutions (2) 1000 Regions Visited (5) 1000 Robots Destroyed (29) 145 Value Destroyed (874) 874 Prototype IDs (0) 0 Alien Tech Used (0) 0 Bonus (0) 0 TOTAL SCORE: 3019 Bonus ------- None Cogmind --------- Core Integrity 0/550 Matter 270/300 Energy 100/100 System Corruption 0% Temperature Cool (9) Movement Core (350) Ox6 Location -8/Storage Parts ------- > --- POWER (2) -------- (None) > --- PROPULSION (2) --- (None) > --- UTILITY (4) ------ Large Storage Unit Improved Signal Interpreter Improved Terrain Scan Processor > --- WEAPON (3) ------- (None) > --- INVENTORY (15) --- Ion Engine Small Battery (100) Large Matter Pod (141) Peak State ------------ > --- POWER ------------ Light Nuclear Core Light Nuclear Core > --- PROPULSION ------- Carbon-fiber Leg > --- UTILITY ---------- Large Storage Unit Improved Signal Interpreter Improved Terrain Scan Processor > --- WEAPON ----------- Shock Rifle Field Laser > --- INVENTORY -------- Ion Engine Small Battery Large Matter Pod [Rating: 22] Favorites ----------- Power Light Nuclear Core Engine Light Ion Engine Power Core Light Nuclear Core Propulsion Compact Wheel Leg Carbon-fiber Leg Wheel Compact Wheel Utility Large Storage Unit Device Heat Sink Storage Large Storage Unit Processor Improved Signal Interpreter Protection Light Armor Plating Weapon Assault Rifle Energy Gun Medium Laser Ballistic Gun Assault Rifle Build | -11 -10 -9 -9 -8 -8 ------- Run | Jun Mat Mat Min Mat Sto Slots Evolved 4 | . . 2 . 2 . Power 1 | . . . . 1 . Propulsion . | . . . . . . Utility 2 | . . 1 . 1 . Weapon 1 | . . 1 . . . Parts Attached 41 | 6 2 11 1 16 5 Power 10 | 1 . 1 . 6 2 Engine 6 | 1 . . . 5 . Core 4 | . . 1 . 1 2 Reactor . | . . . . . . Propulsion 6 | 2 . 1 . 3 . Treads . | . . . . . . Leg 1 | . . . . 1 . Wheel 5 | 2 . 1 . 2 . Hover . | . . . . . . Flight . | . . . . . . Utility 12 | 1 2 4 1 3 1 Device 5 | . 1 2 . 2 . Storage 3 | 1 1 1 . . . Processor 3 | . . . 1 1 1 Hackware . | . . . . . . Protection 1 | . . 1 . . . Artifact . | . . . . . . Weapon 13 | 2 . 5 . 4 2 Energy Gun 10 | 1 . 4 . 3 2 Energy Cannon . | . . . . . . Ballistic Gun 3 | 1 . 1 . 1 . Ballistic Cannon . | . . . . . . Launcher . | . . . . . . Special Weapon . | . . . . . . Impact Weapon . | . . . . . . Slashing Weapon . | . . . . . . Piercing Weapon . | . . . . . . Special Melee Weapon . | . . . . . . Unidentified Prototypes . | . . . . . . Parts Lost 32 | . . 6 . 21 5 Power 10 | . . 1 . 7 2 Propulsion 6 | . . 1 . 4 1 Utility 4 | . . 1 . 3 . Weapon 12 | . . 3 . 7 2 Highest Loss Streak 14 | . . 6 . 14 4 To Critical Strikes . | . . . . . . Average Slot Usage (%) 81 | . 99 93 100 76 65 Engine 5 | . 14 9 . 8 . Core 8 | . . 1 11 6 18 Leg 2 | . . . . . 8 Wheel 13 | . 28 20 22 14 . Device 8 | . 13 11 19 11 . Storage 10 | . 14 11 11 9 9 Processor 8 | . . . 2 9 18 Protection 1 | . . 7 . . . Energy Gun 13 | . 14 15 22 12 11 Ballistic Gun 7 | . 14 16 11 4 . Naked Turns . | . . . . . . Heaviest Build 37 | 12 18 33 32 37 36 Greatest Support 28 | 26 26 28 28 28 15 Greatest Overweight (x) 9 | 1 . 1 1 6 9 Average Overweight (x) 1 | . . . 1 1 1 Largest Inventory Capacity 15 | 8 10 15 15 15 15 Average Capacity 14 | 6 9 14 15 15 15 Most Carried 13 | 5 4 13 11 11 5 Average Carried 5 | 3 2 7 11 7 3 Final Capacity 15 | 8 10 15 15 15 15 Final Carried 11 | 2 3 11 11 5 3 Class Distribution -------------------- 48% | Mutant 22% | Scavenger-Skirmisher 13% | Tank 9% | Scavenger-Mutant 4% | Gunner Dominant Class ---------------- Mutant | -10/Materials Tank | -9/Materials Scavenger-Skirmisher | -9/Mines Scavenger-Skirmisher | -8/Materials Mutant | -8/Storage Resources | -11 -10 -9 -9 -8 -8 ----------- Run | Jun Mat Mat Min Mat Sto Matter Collected 738 | 210 . 244 36 248 . Remotely . | . . . . . . Salvage Created 1066 | . 48 542 . 476 . Parts 70 | . 6 32 . 32 . Haulers Intercepted . | . . . . . . Recyclers Shooed . | . . . . . . Parts Field Recycled . | . . . . . . Retrieved Matter . | . . . . . . Parts Self-Destructed . | . . . . . . Prevented . | . . . . . . Kills | -11 -10 -9 -9 -8 -8 ------- Run | Jun Mat Mat Min Mat Sto Combat Hostiles Destroyed 22 | . 1 10 . 11 . Guns 20 | . 1 9 . 10 . AOE 2 | . . 1 . 1 . Classes Destroyed 8 | . 2 3 . 3 . Worker 2 | . . . . 2 . Builder 2 | . . 2 . . . Watcher 3 | . 1 . . 2 . Swarmer 5 | . . . . 5 . Grunt 9 | . 1 6 . 2 . Brawler 1 | . . 1 . . . Sentry 5 | . . 3 . 2 . Hunter 2 | . . . . 2 . Best Kill Streak 5 | . 1 5 . 4 . Combat Bots Only 4 | . 1 4 . 3 . Max Kills in Single Turn 3 | . 1 2 . 3 . Gunslinging 1 | . . 1 . 1 . Exploded 1 | . . 1 . 1 . Melee . | . . . . . . Uniques/NPCs Destroyed . | . . . . . . Combat | -11 -10 -9 -9 -8 -8 -------- Run | Jun Mat Mat Min Mat Sto Damage Taken 2466 | . 33 480 . 1521 432 Core 607 | . 22 24 . 386 175 Absorbed by Shields . | . . . . . . Core Remaining (%) 95 | 100 91 . 94 . . Volleys Fired 95 | . 9 27 . 51 8 Largest 3 | . 2 3 . 3 2 Hottest 115 | . 70 110 . 115 113 Shots Fired 190 | . 15 70 . 91 14 Gun 190 | . 15 70 . 91 14 Cannon . | . . . . . . Launcher . | . . . . . . Special . | . . . . . . Kinetic 58 | . 9 27 . 22 . Thermal 74 | . 6 24 . 37 7 Explosive . | . . . . . . Electromagnetic 58 | . . 19 . 32 7 Robot Hit Streak 10 | . 5 10 . 6 2 Robot Miss Streak 5 | . 3 5 . 4 2 Penetration Max . | . . . . . . Secondary Targets 6 | . . 4 . 2 . Max Gunslinging Chain 1 | . . 1 . 1 . Shots Hit Robots 112 | . 8 45 . 56 3 Core Hits 55 | . 2 23 . 30 . Critical Kills . | . . . . . . Critical Parts Destroyed . | . . . . . . Critical Strikes 7 | . . 6 . 1 . Burn 5 | . . 4 . 1 . Corrupt 2 | . . 2 . . . Melee Attacks . | . . . . . . Impact . | . . . . . . Slashing . | . . . . . . Piercing . | . . . . . . Sneak Attacks . | . . . . . . Combat Hostiles . | . . . . . . Follow-up Attacks . | . . . . . . Damage Inflicted 2052 | . 104 635 . 1265 48 Guns 1587 | . 104 606 . 829 48 Cannons . | . . . . . . Explosions 465 | . . 29 . 436 . Melee . | . . . . . . Ramming . | . . . . . . Kinetic 387 | . 55 180 . 152 . Thermal 1194 | . 49 291 . 820 34 Explosive . | . . . . . . Electromagnetic 471 | . . 164 . 293 14 Impact . | . . . . . . Slashing . | . . . . . . Piercing . | . . . . . . Highest Corruption . | . . . . . . Average Corruption . | . . . . . . Corruption Purged . | . . . . . . Corruption Blocked . | . . . . . . Overload Shots . | . . . . . . Overflow Damage 139 | . . . . 139 . Projectiles . | . . . . . . Explosions 139 | . . . . 139 . Melee . | . . . . . . Knockbacks . | . . . . . . Impact . | . . . . . . Kinetic . | . . . . . . Secondary . | . . . . . . Self-Inflicted Damage 181 | . . . . 181 . Shots 3 | . . . . 3 . Rammed 1 | . . . . . 1 Targets Rammed 1 | . . . . . 1 Kicked . | . . . . . . Crushed . | . . . . . . Highest Temperature 330 | . 16 277 . 330 240 Average Temperature 110 | . 9 122 . 106 105 Received Heat Transfer 594 | . 18 216 . 234 126 Effects 5 | . . 5 . . . Energy Bleed 1 | . . 1 . . . Interference 4 | . . 4 . . . Siege Activations . | . . . . . . Robots Corrupted . | . . . . . . Combat Hostiles . | . . . . . . Parts Fried . | . . . . . . Impact Corruptions . | . . . . . . Robots Melted . | . . . . . . Combat Hostiles . | . . . . . . Parts Melted 6 | . . 2 . 4 . Heat Transferred 2498 | . 148 1073 . 1203 74 Parts Sabotaged . | . . . . . . Parts Stolen . | . . . . . . Parts Stripped . | . . . . . . Power Chain Reactions 2 | . . 1 . 1 . Missiles Intercepted . | . . . . . . Alert | -11 -10 -9 -9 -8 -8 ------- Run | Jun Mat Mat Min Mat Sto Peak Influence 308 | . 42 283 31 308 66 Initial 37 | . . 17 31 11 37 Average 89 | . 20 106 31 193 35 Maximum Alert Level 1 | . . 1 . 1 . Low Security (%) 79 | 100 100 79 100 38 100 Level 1 20 | . . 20 . 61 . Level 2 . | . . . . . . Level 3 . | . . . . . . Level 4 . | . . . . . . Level 5 . | . . . . . . High Security . | . . . . . . Max Security . | . . . . . . Squads Dispatched 6 | . . 1 . 4 1 Investigation . | . . . . . . Extermination . | . . . . . . Reinforcement 3 | . . 1 . 1 1 Assault . | . . . . . . Garrison 3 | . . . . 3 . Intercept . | . . . . . . Searches Triggered . | . . . . . . Construction Impeded . | . . . . . . Haulers Reinforced . | . . . . . . Active Scanning Responses . | . . . . . . Cargo Convoy Interrupts . | . . . . . . Stealth | -11 -10 -9 -9 -8 -8 --------- Run | Jun Mat Mat Min Mat Sto Distress Signals 7 | . 1 2 . 3 1 Communications Jammed . | . . . . . . Distress Signals . | . . . . . . Times Spotted 42 | . 3 14 . 19 6 Peak Tracking Total 6 | . 2 6 . 4 5 Tactical Retreats 2 | . . 1 . 1 . Traps | -11 -10 -9 -9 -8 -8 ------- Run | Jun Mat Mat Min Mat Sto Traps Triggered . | . . . . . . Indirectly . | . . . . . . Trap Hack Attempts . | . . . . . . Triggered . | . . . . . . Disarmed . | . . . . . . Reprogrammed . | . . . . . . Reused . | . . . . . . Traps Extracted . | . . . . . . Installed . | . . . . . . Triggered . | . . . . . . Machines | -11 -10 -9 -9 -8 -8 ---------- Run | Jun Mat Mat Min Mat Sto Machines Disabled 3 | . . . . 3 . Max in Single Turn 2 | . . . . 2 . Machines Repaired . | . . . . . . Machines Sabotaged . | . . . . . . Overloaded Fab Kills . | . . . . . . Hacking | -11 -10 -9 -9 -8 -8 --------- Run | Jun Mat Mat Min Mat Sto Machines Accessed 6 | . 1 1 . 1 3 Terminals 4 | . . 1 . 1 2 Fabricators . | . . . . . . Repair Stations . | . . . . . . Recycling Units 2 | . 1 . . . 1 Scanalyzers . | . . . . . . Garrison Access . | . . . . . . Total Hacks 15 | . 3 2 . 2 8 Successful 7 | . 2 1 . 1 3 Failed 8 | . 1 1 . 1 5 Catastrophic 2 | . . . . . 2 Database Lockouts . | . . . . . . Manual . | . . . . . . Terminals 10 | . . 2 . 2 6 Fabricators . | . . . . . . Repair Stations . | . . . . . . Recycling Units 5 | . 3 . . . 2 Scanalyzers . | . . . . . . Garrison Access . | . . . . . . Terminal Hacks 4 | . . 1 . 1 2 Record 2 | . . 1 . . 1 Alert Level 1 | . . . . 1 . Locate Traps 1 | . . . . . 1 Fabricator Hacks . | . . . . . . Repair Station Hacks . | . . . . . . Recycling Unit Hacks 3 | . 2 . . . 1 Retrieve Matter 1 | . 1 . . . . Retrieve Components 2 | . 1 . . . 1 Scanalyzer . | . . . . . . Garrison Access Hacks . | . . . . . . Unauthorized Hacks . | . . . . . . Terminals . | . . . . . . Fabricators . | . . . . . . Repair Stations . | . . . . . . Recycling Units . | . . . . . . Scanalyzers . | . . . . . . Garrison Access . | . . . . . . Data Cores Recovered . | . . . . . . Used . | . . . . . . Hacking Detections 3 | . . . . 1 2 Full Trace Events . | . . . . . . Feedback Events . | . . . . . . Feedback Blocked . | . . . . . . Robot Schematics Acquired . | . . . . . . Robots Built . | . . . . . . Authchips . | . . . . . . Time . | . . . . . . Total Robot Build Rating . | . . . . . . Part Schematics Acquired . | . . . . . . Parts Built . | . . . . . . Authchips . | . . . . . . Time . | . . . . . . Total Part Build Rating . | . . . . . . Parts Repaired . | . . . . . . Time . | . . . . . . Parts Recycled . | . . . . . . Recycled Matter . | . . . . . . Retrieved Matter . | . . . . . . Retrieved Components 5 | . 2 . . . 3 Parts Scanalyzed . | . . . . . . Part Schematics Acquired . | . . . . . . Parts Damaged . | . . . . . . Bothacking | -11 -10 -9 -9 -8 -8 ------------ Run | Jun Mat Mat Min Mat Sto Used RIF Installer . | . . . . . . Robots Hacked . | . . . . . . Non-combat . | . . . . . . Combat . | . . . . . . Robot Hacks Applied . | . . . . . . Relay Couplers Released . | . . . . . . Fabnet Peak Effective % . | . . . . . . Robots Rewired . | . . . . . . Allies Hacked . | . . . . . . Hacks Repelled . | . . . . . . Allies | -11 -10 -9 -9 -8 -8 -------- Run | Jun Mat Mat Min Mat Sto Total Allies . | . . . . . . Largest Group . | . . . . . . Highest-Rated Group . | . . . . . . Highest-Rated Ally . | . . . . . . Total Orders . | . . . . . . Ally Attacks . | . . . . . . Total Damage . | . . . . . . Kills . | . . . . . . Allies Corrupted . | . . . . . . Allies Melted . | . . . . . . Intel | -11 -10 -9 -9 -8 -8 ------- Run | Jun Mat Mat Min Mat Sto Robot Analysis Total . | . . . . . . Derelict Logs Recovered . | . . . . . . Drone Launches . | . . . . . . Drone Recoveries . | . . . . . . Exploration | -11 -10 -9 -9 -8 -8 ------------- Run | Jun Mat Mat Min Mat Sto Turns Passed 1825 | 40 190 408 142 477 568 Spaces Moved 1061 | 37 178 243 120 257 226 Core 19 | 17 . . . 1 1 Treads . | . . . . . . Legs 233 | . . . . 8 225 Wheels 809 | 20 178 243 120 248 . Hover . | . . . . . . Flight . | . . . . . . Fastest Speed 50 | 50 90 90 110 95 190 Average Speed 131 | 75 90 102 110 116 234 Slowest Speed 500 | 100 90 115 110 350 500 Overloaded Moves . | . . . . . . Propulsion Burnouts . | . . . . . . Robots Hopped . | . . . . . . Cave-ins Triggered . | . . . . . . Exploration Rate (%) 27 | 3 31 25 33 37 33 Regions Visited 5 Branch Regions 2 Pre-discovered Areas . | . . . . . . Known Exits Taken 1 | . . . . 1 . Unknown Exits Taken 4 | 1 1 1 1 . . Scrap Searched 2 | . . . 2 . . Spaces Dug . | . . . . . . Terrain Destroyed 50 | . . 6 . 44 . Melee . | . . . . . . Projectile . | . . . . . . AOE 50 | . . 6 . 44 . Terrain Rammed . | . . . . . . Walls Destroyed . | . . . . . . Machines Disabled . | . . . . . . Actions | -11 -10 -9 -9 -8 -8 --------- Run | Jun Mat Mat Min Mat Sto Total 1317 | 47 192 345 129 358 246 Wait 84 | . . 47 9 25 3 Move 1056 | 36 177 242 119 256 226 Hop . | . . . . . . Pick Up 38 | 5 3 17 . 10 3 Fast Attach 3 | 3 . . . . . Attach 32 | 3 1 8 . 16 4 Detach . | . . . . . . Swap 6 | . 1 3 1 . 1 Drop 2 | . 1 1 . . . Fire 95 | . 9 27 . 51 8 Melee . | . . . . . . Ram 1 | . . . . . 1 Kick . | . . . . . . Crush . | . . . . . . Escape Stasis . | . . . . . . Rewire . | . . . . . . Trap . | . . . . . . Miscellaneous . | . . . . . . Route ------- -11/Junkyard -10/Materials -9/Materials -9/Mines -8/Materials -8/Storage History --------- Turn | Location | Event 26 | -11/Junkyard | Discovered new exit (range 16) 41 | -11/Junkyard | Entered Materials 218 | -10/Materials | Discovered new exit (range 10) 231 | -10/Materials | Entered another Materials area 231 | -9/Materials | Evolved 2 slots: Utility x1, Weapon x1 618 | -9/Materials | Lost 6 parts (1p1n1u3w) 621 | -9/Materials | Discovered new exit (range 16) 639 | -9/Materials | Entered Mines 665 | -9/Mines | Met a Derelict bent on vengeance 758 | -9/Mines | Discovered new exit (range 7) 781 | -9/Mines | Entered Materials 781 | -8/Materials | Evolved 2 slots: Power x1, Utility x1 825 | -8/Materials | Garrison activated, responded to threat 875 | -8/Materials | Build established: Scavenger-Skirmisher 1102 | -8/Materials | Core integrity fell below 50% 1135 | -8/Materials | Lost 14 parts (5p3n3u3w) 1226 | -8/Materials | Discovered new exit (range 15) 1256 | -8/Materials | Identified exit to Storage 1258 | -8/Materials | Entered Storage 1270 | -8/Storage | Lost 4 parts (2p1n1w) 1652 | -8/Storage | Build established: Mutant 1815 | -8/Storage | Core integrity fell below 20% 1826 | -8/Storage | Destroyed by G-47 Trooper with Particle Gun Last Messages --------------- Acquired Shock Rifle. Acquired Field Laser. Connecting with Terminal... >>Traps(Locate) Found 6 traps in 1 array: 6x EMP Trap Map updated. O-16 Technician: "IFF HANDSHAKE FAILED. SECURING TERMINAL." K-01 Serf collects debris. ALERT: Hostiles spotted, dispatching reinforcements to Terminal S002. K-01 Serf collects debris. K-01 Serf cleans the Storage Shell. K-01 Serf collects debris. Shock Rifle destroyed. Field Laser destroyed. W-25 Informer sends out distress signal. Carbon-fiber Leg destroyed. Lgt. Nuclear Core destroyed. Slammed into W-25 Informer. Lgt. Nuclear Core destroyed. Map ----- +----------------------------------------------------+ | ????????????????????????????????????????????????? | | ????????????????????????????????????????????????? | | ????????????????????????????????????????????????? | | ????????????????????????????????????????????????? | | ????????????????????????????????????????????????? | | ????????????????????????????????????????????????? | | ????????????????????????????????????????????????? | | ????????????????????????????????????????????????? | | ????????????????????????????????????????????????? | | ????????????????????????????????????????????????? | | ????????????????????????????????????????????????? | | ????????????????????????????????????????????????? | | ????????????????????????????????????????????????? | | ????????????????????????????????????????????????? | | ????????????????????????????????????????????????? | | ????????????????????????????????????????????????? | | ??????????????????????#####?????????????????????? | | ?????????????????????? ?????????????????????? | | ?????????????????????? """ ?????????????????????? | | ???????????????????????"""??????????????????????? | | ???????????????????????"""??????????????????????? | | ??????????????????????? ??????????????????????? | | ??????????????????????? ??????????????????????? | | ???????????????????????#/#??????????????????????? | | ???? ??????????????????#w#??????????????????????? | | ???? ??????????????????#@#??????????????????????? | | ???? ?????????????######g#########??????????????? | | ???? ?????????????# g# #??????????????? | | ???? ?????????????# /! #??????????????? | | ???? ?????????????# #! ] #??????????????? | | ???# #????????????# # + ???????????? | | ??? ????????????# #?= [ ## ?????????? | | ??? ?????######## ^#??! #??????????????? | | ??? ?????# # ^ #???####??????????????? | | ???# #?????# """ # ### #?????????????????? | | ???# #?????# """ # #?????????????????? | | ???# #?????# """ # #?????????????????? | | ???# #?????# # ###???????????????? | | ???# #?????# # ????????????? | | ???# ###########+## Y ????????????? | | ???# ?????????????? | | ???####### ? ??????????? | | ?????????# ? ??????????? | | ?????????# ? ??????????? | | ?????????# #####?# ??????????? | | ??????####+##+## #?????# ??????????? | | ??????# # #?????# ??????????? | | ??????# """" # #?????# ###???????? | | ??????# "??"" # #?????+ +???????? | | ??????# "???"" # #?????# #???????? | +----------------------------------------------------+ Best States ------------- Heat Dissipation 41 Energy Generation 23 Energy Capacity 415 Matter Stores 300 Matter Capacity 300 Sight Range 16 Terrain Scan Range 14 Terrain Scan Density 110 Armor Coverage 150 Evasion (%) 50 Item Schematics ----------------- None Robot Schematics ------------------ None Fabricated ------------ Nothing Alien Tech Used ----------------- None Achievements -------------- None Challenges ------------ None Game ------ Seed HybridSwordMaul Manual? 0 Play Time 00:27:12 Cumulative 4.2 hours Start 2023.08.03 @ 22:45:19 End 2023.08.03 @ 23:13:02 Sessions 1 Manual Loads 0 Difficulty Rogue Special Mode None Game No. 6 Rogue 6 Adventurer 0 Explorer 0 Win Type - Total 0 Types 0/0/0/0/0/0/0/0/0 Lore% 8 Gallery% 8 Achievement% 9 Wizard Run 0 Options --------- ASCII 0 Keyboard 0 Movement Mouse Keybinds 0 Fullscreen 1 Font 18/SmallcapsGlow Map View 76x50 Tactical HUD 0 Map Filters NONE Filters NONE Steam 1 RUN: d55d0274-9e93-4c95-b4fc-a1c715381030